bitfinex/quotes_ETHUSD_20250326
["timestamp","ask_amount","ask_price","bid_price","bid_amount"]
[1743009548677,7.9619,2015.4,2015.1,0.8247]
[1743009549006,3.0,2015.2,2015.0,4.96267]
[1743009549501,7.96229,2015.2,2014.9,0.8247]
[1743009549801,3.0,2015.0,2014.9,5.78772]
[1743009550362,7.9628,2015.0,2014.7,5.7596]
[1743009550661,4.17389883,2014.9,2014.7,0.7961]
[1743009550893,3.0,2014.8,2014.7,0.7961]
[1743009551097,3.0,2014.8,2014.6,9.92723]
[1743009551284,3.0,2014.8,2014.6,9.92722]
[1743009551483,3.0,2014.8,2014.7,4.96351]
[1743009552194,3.0,2014.8,2014.7,5.72951]
[1743009553987,4.17389883,2015.1,2015.0,4.96277]
[1743009554192,3.0,2015.2,2015.0,4.96263]
[1743009554704,3.0,2015.2,2014.9,4.96293]
[1743009555207,3.0,2015.2,2014.9,9.9258]
[1743009555600,3.0,2015.2,2015.0,4.96275]
[1743009556509,3.0,2015.2,2015.0,4.96261]
[1743009556709,4.17389883,2015.3,2015.2,4.96228]
[1743009556892,9.07289883,2015.5,2015.2,4.96228]
[1743009557092,3.0,2015.4,2015.1,5.77292]
[1743009557300,3.0,2015.4,2015.2,4.96213]
[1743009559209,4.96217,2015.3,2014.9,4.96301]
[1743009559389,4.96217,2015.3,2014.8,0.7613]
[1743009559390,3.0,2015.0,2014.8,0.7613]
[1743009559591,3.0,2015.0,2014.8,5.72453]
[1743009560005,3.0,2015.0,2014.8,10.68764]
[1743009560324,4.96234,2015.2,2015.1,4.9625]
[1743009560325,3.0,2015.2,2015.1,4.9625]
[1743009560493,3.0,2015.2,2014.9,4.96281]
[1743009560494,3.0,2015.3,2015.0,4.96274]
[1743009560685,3.0,2015.3,2015.0,4.96264]
[1743009560686,7.17389883,2015.3,2015.0,4.96264]
[1743009561424,7.17389883,2015.3,2015.1,4.96243]
[1743009561789,7.17389883,2015.3,2015.0,4.96264]
[1743009561988,7.17389883,2015.3,2015.0,9.92533]
[1743009562183,7.17389883,2015.3,2015.1,4.9625]
[1743009562412,7.17389883,2015.3,2015.0,4.9626]
[1743009562593,3.0,2015.3,2015.2,5.76468]
[1743009562797,3.0,2015.3,2015.2,4.96228]
[1743009563394,4.17389883,2015.5,2015.3,4.96198]
[1743009563601,38.09458159,2015.7,2015.5,4.96143]
[1743009563829,3.0,2015.6,2015.5,4.96143]
[1743009564328,38.09458159,2015.7,2015.5,4.96143]
[1743009564532,3.0,2015.6,2015.5,4.96143]
[1743009564714,3.0,2015.6,2015.4,4.9617]
[1743009565015,3.0,2015.6,2015.4,9.92337]
[1743009565225,3.0,2015.6,2015.5,4.96154]
[1743009565435,3.0,2015.6,2015.5,5.74384]
[1743009569047,3.28301617,2016.0,2015.9,4.96056]
[1743009569260,3.28301617,2016.0,2015.9,5.76906]
[1743009570453,6.28301617,2016.0,2015.9,4.96056]
[1743009571146,6.28301617,2016.0,2015.7,0.761]
[1743009571147,3.0,2015.9,2015.7,4.96096]
[1743009571345,7.17389883,2015.9,2015.5,5.76864]
[1743009571653,12.13446883,2015.9,2015.6,4.96129]
[1743009572226,7.17389883,2015.9,2015.6,9.92247]
[1743009572425,3.0,2015.9,2015.7,4.96096]
[1743009572855,4.17389883,2015.8,2015.7,4.96096]
[1743009573423,4.17389883,2015.8,2015.6,4.9613]
[1743009573836,3.0,2015.7,2015.6,4.9613]
[1743009574325,3.0,2015.9,2015.7,4.9609]
[1743009574945,3.0,2015.9,2015.7,9.92181]
[1743009575255,3.0,2015.9,2015.8,4.9608]
[1743009575433,3.0,2015.9,2015.7,4.9609]
[1743009575434,4.96091,2015.8,2015.1,0.822]
[1743009575751,7.17389883,2015.6,2015.5,4.96154]
[1743009576624,3.0,2015.6,2015.4,4.96171]
[1743009576955,3.0,2015.6,2015.4,4.96162]
[1743009577346,3.0,2015.6,2015.4,9.92327]
[1743009577559,3.0,2015.6,2015.4,4.96162]
[1743009577741,3.0,2015.6,2015.4,9.92325]
[1743009577946,3.0,2015.6,2015.4,4.96162]
[1743009578656,3.0,2015.6,2015.5,4.96154]
[1743009579538,3.0,2015.6,2015.2,4.96222]
[1743009579539,3.0,2015.5,2015.2,4.96222]
[1743009579788,12.13551883,2015.5,2015.1,5.78453]
[1743009579992,3.0,2015.2,2015.1,4.96253]
[1743009580495,7.17389883,2015.5,2015.2,4.96214]
[1743009580803,13.86501371,2015.5,2015.2,4.96214]
[1743009581964,3.0,2015.6,2015.4,4.96155]
[1743009582169,3.0,2015.6,2015.5,4.96154]
[1743009582402,3.0,2015.6,2015.4,4.96172]
[1743009582890,4.17389883,2015.5,2015.2,9.92445]
[1743009583102,3.0,2015.4,2015.2,4.96219]
[1743009583308,3.0,2015.4,2015.2,4.96227]
[1743009583583,3.0,2015.4,2015.2,4.96215]
[1743009583993,3.0,2015.4,2015.2,4.96214]
[1743009585308,3.0,2015.4,2015.2,4.96213]
[1743009585788,3.0,2015.4,2015.2,9.92422]
[1743009586364,3.1986,2015.4,2015.1,4.96244]
[1743009586558,3.1986,2015.4,2015.2,4.96222]
[1743009586894,3.0,2015.4,2015.2,9.92435]
[1743009587393,3.0,2015.4,2015.2,4.96213]
[1743009587594,3.0,2015.4,2015.1,9.9249]
[1743009587789,3.0,2015.4,2015.2,4.96226]
[1743009588157,3.0,2015.4,2015.1,4.96237]
[1743009588359,3.0,2015.2,2014.9,10.69629]
[1743009588571,3.0,2015.2,2014.9,5.73327]
[1743009588897,3.0,2015.2,2014.9,10.69613]
[1743009589199,0.1986,2015.1,2014.3,4.17389883]
[1743009589396,0.1986,2015.1,2013.4,1.85756167]
[1743009589397,3.0,2014.7,2014.5,4.96378]
[1743009589556,3.0,2014.7,2014.4,5.72043]
[1743009589766,3.0,2014.7,2014.4,4.96413]
[1743009590599,3.0,2014.7,2014.2,0.75]
[1743009590795,3.0,2014.7,2014.5,4.96378]
[1743009590974,3.0,2014.7,2014.5,9.92764]
[1743009591789,3.0,2014.7,2014.5,4.96378]
[1743009591993,3.0,2014.7,2014.5,9.9277]
[1743009592396,3.0,2014.7,2014.5,4.96378]
[1743009592598,3.0,2014.7,2014.5,9.92768]
[1743009592901,3.0,2014.9,2014.6,4.96364]
[1743009593581,3.0,2014.7,2014.6,4.96364]
[1743009594383,3.0,2014.7,2014.5,4.96378]
[1743009594577,3.0,2014.7,2014.5,9.92761]
[1743009595009,3.0,2014.7,2014.5,4.96378]
[1743009595306,0.37548123,2014.8,2014.5,4.96378]
[1743009595500,3.0,2014.8,2014.6,4.96367]
[1743009595683,7.37249883,2015.0,2014.7,4.96345]
[1743009595887,0.1986,2015.4,2015.0,4.96276]
[1743009596076,4.861,2015.4,2015.1,4.96232]
[1743009596265,9.82281,2015.4,2015.1,4.96232]
[1743009596470,7.17389883,2015.3,2015.0,4.96265]
[1743009596700,7.55553549,2015.3,2014.9,5.76208]
[1743009596902,4.17389883,2015.3,2015.1,4.96238]
[1743009597092,4.17389883,2015.3,2015.2,4.96228]
[1743009597477,3.0,2015.3,2015.2,4.96228]
[1743009599006,3.0,2015.2,2015.1,4.96238]
[1743009599384,3.0,2015.2,2015.1,4.96253]
[1743009599605,3.0,2015.2,2015.0,4.96272]
[1743009599905,3.0,2015.0,2014.8,4.96324]
[1743009600473,3.0,2015.0,2014.7,5.77161]
[1743009600698,4.17389883,2014.9,2014.7,5.77161]
[1743009601088,4.17389883,2014.9,2014.6,4.96374]
[1743009601405,4.17389883,2014.9,2014.6,9.92734]
[1743009601609,4.17389883,2014.9,2014.7,4.96351]
[1743009602924,7.55154379,2015.3,2014.7,5.78744006]
[1743009603079,9.03089883,2015.3,2015.1,4.96241]
[1743009603280,4.857,2015.3,2015.1,5.79121]
[1743009603924,3.0,2015.4,2015.2,4.96228]
[1743009604223,3.37742464,2015.5,2015.2,4.96228]
[1743009604528,5.51,2016.2,2015.1,5.7913]
[1743009604529,5.15953,2015.8,2015.1,5.7913]
[1743009604681,9.03489883,2015.9,2015.5,5.72381]
[1743009604880,9.03489883,2015.9,2015.6,4.96119]
[1743009605081,3.0,2015.6,2015.5,0.7625]
[1743009605298,9.13494883,2015.7,2015.4,4.96174]
[1743009605521,10.53454371,2015.7,2015.3,5.79341]
[1743009605695,4.17389883,2015.5,2015.3,5.79341]
[1743009605885,4.17389883,2015.5,2015.2,4.96218]
[1743009606229,3.0,2015.2,2014.9,5.71765]
[1743009606391,4.17389883,2015.1,2014.9,5.71765]
[1743009606783,4.17389883,2015.1,2014.8,4.96311]
[1743009606983,3.0,2015.0,2014.8,4.96311]
[1743009607206,3.0,2015.0,2014.7,5.71815]
[1743009607439,7.17389883,2015.3,2015.0,4.9627]
[1743009607950,1.39959488,2015.7,2015.1,0.818]
[1743009608152,9.13510883,2015.7,2015.3,4.96191]
[1743009608314,4.17389883,2015.5,2015.2,4.96219]
[1743009608652,4.17389883,2015.5,2015.3,4.96194]
[1743009608653,3.0,2015.4,2015.3,4.96194]
[1743009609747,7.17389883,2015.7,2015.3,9.92388]
[1743009609946,8.90329571,2015.7,2015.5,4.96153]
[1743009610160,1.72939688,2015.7,2015.5,4.96145]
[1743009610324,7.89,2015.8,2015.6,4.9612]
[1743009610520,4.17389883,2015.7,2015.3,4.96189]
[1743009610745,3.0,2015.4,2015.3,4.96189]
[1743009611144,3.0,2015.4,2015.2,4.96219]
[1743009611352,3.0,2015.4,2015.3,4.96204]
[1743009611914,3.0,2015.7,2015.5,4.96153]
[1743009612213,3.0,2015.7,2015.6,4.9613]
[1743009612446,4.89,2015.8,2015.7,4.96105]
[1743009612752,3.0,2015.7,2015.6,4.9613]
[1743009613959,9.28349883,2016.1,2015.9,4.96043]
[1743009614323,3.0,2016.0,2015.9,4.96043]
[1743009614656,6.02244944,2016.4,2016.2,4.95981]
[1743009614964,3.0,2016.3,2016.2,4.95981]
[1743009615117,3.0,2016.3,2016.1,9.91997]
[1743009615552,4.17389883,2016.8,2016.3,4.95947]
[1743009615553,9.33116883,2016.7,2016.3,4.95947]
[1743009615723,3.0,2016.6,2016.4,4.95926]
[1743009615923,3.0,2016.6,2016.3,4.95945]
[1743009616447,3.0,2016.6,2016.2,4.95975]
[1743009616656,3.0,2016.4,2016.2,4.95975]
[1743009617032,3.0,2016.4,2016.2,4.95965]
[1743009617459,3.0,2016.4,2016.1,11.663477]
[1743009617660,3.0,2016.4,2016.2,4.95972]
[1743009617981,4.37249883,2016.7,2016.5,4.95897]
[1743009618174,9.13225883,2016.8,2016.5,4.95897]
[1743009618369,9.13225883,2016.8,2016.3,4.95957]
[1743009618370,3.0,2016.7,2016.4,4.95925]
[1743009618570,3.0,2016.7,2016.3,4.95957]
[1743009618772,3.0,2016.7,2016.4,4.95932]
[1743009619082,7.95864,2016.7,2016.3,4.95957]
[1743009619255,7.95864,2016.7,2016.3,4.95947]
[1743009619881,7.95864,2016.7,2016.4,4.95928]
[1743009620182,3.0,2016.7,2016.4,4.95928]
[1743009620375,7.95869,2016.7,2016.3,4.95947]
[1743009620571,3.0,2016.5,2016.2,4.95981]
[1743009620775,3.0,2016.5,2016.2,9.9195]
[1743009621095,3.0,2016.5,2016.3,4.95955]
[1743009622594,3.0,2016.7,2016.4,4.95926]
[1743009622795,3.0,2016.8,2016.5,4.95897]
[1743009623601,7.95837,2016.8,2016.5,4.95897]
[1743009623993,12.91687,2016.8,2016.3,4.95933]
[1743009624207,9.91799,2016.6,2016.2,4.95973]
[1743009624389,3.0,2016.5,2016.2,9.9194]
[1743009624589,3.0,2016.5,2016.3,4.95955]
[1743009624975,3.0,2016.5,2016.4,4.95933]
[1743009625697,3.0,2016.5,2016.3,4.95955]
[1743009626004,3.0,2016.5,2016.3,4.9594]
[1743009626503,13.54493571,2016.5,2016.1,5.71162]
[1743009626806,8.58575571,2016.5,2016.2,4.95976]
[1743009627516,13.54486571,2016.5,2016.1,5.71162]
[1743009627806,18.50415571,2016.5,2016.1,5.71162]
[1743009628103,13.54486571,2016.5,2016.1,10.67154]
[1743009628405,18.50411571,2016.5,2016.1,5.71152]
[1743009628617,3.0,2016.2,2015.9,6.8955]
[1743009628803,4.17389883,2016.1,2015.9,11.85604]
[1743009629008,3.0,2016.1,2016.0,4.96031]
[1743009629507,4.881,2016.4,2016.2,4.95977]
[1743009629666,3.0,2016.3,2016.2,4.95977]
[1743009630614,3.0,2016.3,2016.1,4.95998]
[1743009630990,3.0,2016.3,2016.1,4.95996]
[1743009631189,3.0,2016.3,2016.1,4.95997]
[1743009631622,3.0,2016.3,2016.2,4.95982]
[1743009634022,3.0,2016.5,2016.2,4.95968]
[1743009634332,3.0,2016.5,2016.2,9.91936]
[1743009634514,3.0,2016.5,2016.3,4.95955]
[1743009635302,7.95909,2016.5,2016.2,4.95968]
[1743009636632,4.91274328,2016.9,2016.3,0.8038]
[1743009636928,4.34707092,2016.9,2016.7,5.76226]
[1743009637140,4.34707092,2016.9,2016.8,4.95834]
[1743009637425,3.0,2017.2,2016.9,4.95785]
[1743009637631,9.05589883,2017.3,2017.1,4.9575]
[1743009637800,3.0,2017.2,2016.9,4.95802]
[1743009638133,3.0,2017.2,2017.0,4.95777]
[1743009638626,9.05589883,2017.3,2017.0,4.95777]
[1743009638833,3.0,2017.2,2017.0,4.95777]
[1743009639237,3.0,2017.0,2016.8,4.95832]
[1743009639440,3.0,2017.0,2016.9,4.9581]
[1743009640814,3.0,2017.0,2016.7,11.88233]
[1743009641014,4.17389883,2016.9,2016.7,11.88233]
[1743009641227,4.17389883,2016.9,2016.7,11.07856]
[1743009641428,4.17389883,2016.9,2016.7,6.12]
[1743009641611,4.17389883,2016.9,2016.5,4.95906]
[1743009641612,3.0,2016.8,2016.5,4.95906]
[1743009641813,3.0,2016.6,2016.3,11.89506]
[1743009642021,4.17389883,2016.5,2016.3,16.85449]
[1743009642319,4.17389883,2016.5,2016.4,4.95933]
[1743009642320,3.0,2016.5,2016.4,4.95933]
[1743009644948,3.0,2016.5,2016.3,11.07943]
[1743009645248,7.17389883,2016.5,2016.3,11.07943]
[1743009645444,3.0,2016.4,2016.0,4.96027]
[1743009645649,3.0,2016.2,2016.0,4.96027]
[1743009646245,4.17389883,2016.1,2015.8,4.9608]
[1743009646457,4.17389883,2016.1,2015.8,4.96068]
[1743009646639,4.17389883,2016.1,2015.9,4.96049]
[1743009646842,4.17389883,2016.1,2015.9,9.92096]
[1743009647314,3.0,2016.1,2016.0,4.96031]
[1743009648965,3.0,2016.0,2015.8,4.96061]
[1743009651989,3.0,2015.8,2015.6,4.96128]
[1743009652186,7.17389883,2015.7,2015.6,4.96128]
[1743009652979,3.0,2015.6,2015.3,11.43597098]
[1743009653325,4.17389883,2015.5,2015.3,4.96185]
[1743009653622,3.0,2015.2,2014.9,4.96283]
[1743009653797,4.17389883,2015.1,2015.0,4.96261]
[1743009654107,3.0,2015.1,2015.0,4.96261]
[1743009655109,7.17389883,2015.1,2014.9,4.96293]
[1743009655307,7.17389883,2015.1,2014.8,4.96316]
[1743009655687,12.13642883,2015.1,2014.8,4.96316]
[1743009655865,7.17389883,2014.9,2014.7,5.74068]
[1743009656065,3.0,2014.8,2014.6,16.04734]
[1743009656378,3.0,2014.8,2014.7,4.96351]
[1743009657000,3.0,2014.8,2014.6,6.12]
[1743009657514,3.0,2014.8,2014.2,0.8138]
[1743009657706,3.0,2014.8,2014.5,9.92777]
[1743009657906,3.0,2014.8,2014.6,4.96376]
[1743009658902,7.37249883,2014.9,2014.6,4.9636]
[1743009659084,7.17389883,2014.9,2014.6,4.9636]
[1743009659426,11.46450272,2015.1,2014.7,4.96328]
[1743009659625,4.875,2014.9,2014.8,4.96327]
[1743009660132,3.0,2015.0,2014.9,4.96302]
[1743009660729,3.0,2015.0,2014.8,4.96317]
[1743009660932,3.0,2015.0,2014.9,4.96302]
[1743009663932,3.0,2015.0,2014.8,4.96317]
[1743009664224,3.0,2015.0,2014.8,9.92632]
[1743009665322,3.0,2015.0,2014.8,4.96315]
[1743009665684,3.0,2015.0,2014.8,4.96314]
[1743009665889,3.0,2015.0,2014.9,4.96302]
[1743009666940,3.0,2015.0,2014.8,4.96314]
[1743009667106,3.0,2015.0,2014.7,4.9635]
[1743009667312,3.0,2014.8,2014.5,11.08383]
[1743009667580,3.0,2014.6,2014.5,11.08383]
[1743009667740,12.33554883,2014.9,2014.5,16.04775]
[1743009667900,12.33554883,2014.9,2014.5,16.04766]
[1743009668096,0.1986,2014.5,2014.1,11.15487]
[1743009668315,7.17389883,2014.3,2014.2,4.96466]
[1743009668523,3.0,2014.4,2014.2,4.96466]
[1743009668742,7.868,2014.4,2014.3,4.9645]
[1743009669248,12.04189883,2014.4,2014.1,0.07]
[1743009669552,13.53206103,2014.4,2014.1,0.07]
[1743009669755,7.17389883,2014.2,2014.1,0.07]
[1743009670104,3.0,2014.2,2014.1,0.07]
[1743009672053,3.0,2014.2,2014.1,5.03499]
[1743009672653,3.0,2014.2,2014.1,0.07]
[1743009673454,3.0,2014.2,2014.1,5.03499]
[1743009673655,3.0,2014.2,2014.1,0.07]
[1743009673886,3.37786589,2014.2,2014.1,0.07]
[1743009674007,7.55176472,2014.2,2014.1,0.07]
[1743009674717,9.0563546,2014.2,2014.1,0.07]
[1743009675424,14.0211046,2014.2,2014.1,0.07]
[1743009675619,9.0563546,2014.2,2014.1,0.07]
[1743009677302,9.2549546,2014.2,2014.1,0.07]
[1743009677854,14.2197046,2014.2,2014.1,0.07]
[1743009681422,9.2549546,2014.2,2014.1,0.07]
[1743009681643,12.58836472,2014.2,2014.1,0.07]
[1743009684747,17.55311472,2014.2,2014.1,0.07]
[1743009684936,12.58836472,2014.2,2014.1,0.07]
[1743009685858,17.55311472,2014.2,2014.1,0.07]
[1743009686357,7.55176472,2014.2,2014.1,0.07]
[1743009686514,12.37676472,2014.2,2014.1,0.07]
[1743009688367,0.1986,2014.6,2014.1,0.8708]
[1743009688566,4.824,2014.4,2014.3,4.96442]
[1743009689479,0.36639346,2014.5,2014.4,4.96417]
[1743009689625,3.36639346,2014.5,2014.4,4.96417]
[1743009689833,3.0,2014.5,2014.4,4.96417]
[1743009690196,3.0,2014.6,2014.4,5.76657]
[1743009690331,3.0,2014.6,2014.4,0.8024]
[1743009690534,4.17389883,2014.5,2014.2,5.76714]
[1743009691081,4.17389883,2014.3,2014.1,0.07]
[1743009691359,4.17389883,2014.3,2014.1,5.03494]
[1743009691558,4.17389883,2014.3,2014.1,5.03485]
[1743009691761,3.0,2014.3,2014.2,4.96475]
[1743009693378,33.467,2014.7,2014.2,4.96475]
[1743009693379,28.644,2014.7,2014.2,0.8141]
[1743009693576,3.0,2014.6,2014.5,4.96386]
[1743009694076,3.0,2014.6,2014.5,5.72946]
[1743009694280,3.0,2014.6,2014.5,6.79883]
[1743009696076,4.53853814,2014.8,2014.7,4.96351]
[1743009696077,3.0,2014.8,2014.7,4.96351]
[1743009696290,4.73071453,2015.0,2014.8,4.96317]
[1743009696581,3.0,2014.9,2014.8,4.96317]
[1743009697539,7.17389883,2014.9,2014.8,4.96317]
[1743009698374,7.17389883,2014.9,2014.8,5.955838]
[1743009699381,7.17389883,2014.9,2014.8,1.801668]
[1743009699577,4.96347,2014.8,2014.4,0.809]
[1743009699879,7.17389883,2014.9,2014.3,6.12]
[1743009699880,4.17389883,2014.5,2014.3,6.12]
[1743009700459,11.98789883,2014.6,2014.3,11.08449]
[1743009700964,16.95172883,2014.6,2014.3,6.12]
[1743009701461,16.95176883,2014.6,2014.3,6.12]
[1743009701664,11.98789883,2014.6,2014.3,6.12]
[1743009701871,11.98789883,2014.6,2014.3,11.08449]
[1743009702282,4.96309,2014.9,2014.4,4.9642]
[1743009702441,11.98689883,2014.9,2014.5,5.73423]
[1743009702646,16.95005883,2014.9,2014.5,7.416083]
[1743009702938,3.0,2014.6,2014.5,7.416083]
[1743009704096,3.0,2014.6,2014.5,2.452253]
[1743009704298,3.0,2014.6,2014.5,0.7704]
[1743009705092,7.17389883,2014.6,2014.5,0.7704]
[1743009705406,7.17389883,2014.6,2014.3,16.86925]
[1743009705556,7.17389883,2014.6,2014.3,11.90476]
[1743009706301,4.17389883,2014.4,2014.3,6.12]
[1743009706462,7.17389883,2014.4,2014.3,6.12]
[1743009707295,7.17389883,2014.4,2014.3,11.0845]
[1743009707593,7.17389883,2014.4,2014.3,6.12]
[1743009709597,3.0,2014.4,2014.3,11.0845]
[1743009710105,7.17389883,2014.4,2014.3,11.0845]
[1743009710404,7.17389883,2014.4,2014.3,6.12]
[1743009711967,3.0,2014.3,2014.1,0.8904]
[1743009712201,4.17389883,2014.2,2014.1,0.07]
[1743009713884,7.17389883,2014.2,2014.1,0.07]
[1743009714482,7.17389883,2014.2,2014.1,5.03499]
[1743009714993,7.17389883,2014.2,2014.1,0.07]
[1743009715827,7.17389883,2014.2,2014.1,5.03499]
[1743009716382,7.17389883,2014.2,2014.1,0.07]
[1743009717926,3.0,2014.2,2014.1,6.727633]
[1743009718107,3.0,2014.2,2014.1,7.538533]
[1743009718305,7.17389883,2014.2,2014.1,7.538533]
[1743009718821,7.17389883,2014.2,2014.1,5.84589]
[1743009719231,7.17389883,2014.2,2014.1,5.03499]
[1743009720534,7.17389883,2014.2,2014.1,0.07]
[1743009721037,7.17389883,2014.2,2014.1,5.03499]
[1743009721897,3.0,2014.2,2014.1,5.03499]
[1743009722132,3.0,2014.2,2014.1,6.726408]
[1743009722622,3.0,2014.2,2014.1,5.03499]
[1743009724388,4.17389883,2014.3,2014.1,5.03499]
[1743009724636,33.6366,2014.9,2014.6,4.96364]
[1743009724843,7.17389883,2014.7,2014.6,4.96364]
[1743009724998,4.17389883,2014.7,2014.6,4.96364]
[1743009725342,4.17389883,2014.7,2014.5,4.96397]
[1743009725536,4.17389883,2014.7,2014.5,9.92782]
[1743009725744,7.17389883,2014.6,2014.5,5.956632]
[1743009726227,7.17389883,2014.6,2014.5,4.96385]
[1743009730613,4.73071453,2015.0,2014.5,0.7724]
[1743009730819,4.73071453,2015.0,2014.9,4.96302]
[1743009731126,4.73071453,2015.0,2014.9,5.73542]
[1743009731732,8.90461336,2015.0,2014.8,9.92633]
[1743009732042,3.0,2014.9,2014.8,4.96315]
[1743009733013,4.73071453,2015.0,2014.9,4.96302]
[1743009733227,4.73071453,2015.0,2014.9,5.79122]
[1743009735431,4.73071453,2015.0,2014.9,11.91122]
[1743009736709,8.90461336,2015.0,2014.9,6.12]
[1743009736928,8.90461336,2015.0,2014.9,11.08302]
[1743009737511,8.90461336,2015.0,2014.9,6.12]
[1743009737716,12.8149347,2015.0,2014.9,6.12]
[1743009738244,17.7777047,2015.0,2014.9,6.12]
[1743009738640,12.8149347,2015.0,2014.9,6.12]
[1743009738830,17.7777047,2015.0,2014.9,6.12]
[1743009739137,8.16172,2014.9,2014.5,4.96386]
[1743009739327,4.17389883,2014.7,2014.5,9.92767]
[1743009739823,4.17389883,2014.7,2014.4,11.08425]
[1743009740004,4.17389883,2014.5,2014.4,11.08425]
[1743009741242,4.17389883,2014.5,2014.4,11.1348474]
[1743009742421,4.17389883,2014.7,2014.5,4.96398]
[1743009742617,7.17389883,2014.7,2014.4,11.1348074]
[1743009742812,3.0,2014.6,2014.5,4.96401]
[1743009743213,3.0,2014.6,2014.5,0.0505974]
[1743009744209,4.21372688,2014.6,2014.5,0.0505974]
[1743009744410,4.41232688,2014.6,2014.5,0.0505974]
[1743009744828,9.37608688,2014.6,2014.5,0.0505974]
[1743009745261,4.41232688,2014.6,2014.5,0.0505974]
[1743009745446,4.17389883,2014.7,2014.6,4.96376]
[1743009746725,4.17389883,2014.7,2014.5,5.0144474]
[1743009747326,4.17389883,2014.7,2014.6,4.96376]
[1743009750485,4.17389883,2014.7,2014.6,4.96376]
[1743009750788,4.73071453,2015.0,2014.8,4.96327]
[1743009751077,4.73071453,2015.0,2014.9,4.96302]
[1743009751642,7.73071453,2015.0,2014.9,4.96302]
[1743009753642,7.73071453,2015.0,2014.9,5.77582]
[1743009755494,4.73071453,2015.0,2014.9,11.89582]
[1743009756286,4.73071453,2015.0,2014.9,6.12]
[1743009756598,8.62117587,2015.0,2014.9,6.12]
[1743009756903,7.73071453,2015.0,2014.9,6.12]
[1743009757501,7.73071453,2015.0,2014.9,11.08302]
[1743009757671,7.73071453,2015.0,2014.9,6.12]
[1743009759055,7.73071453,2015.0,2014.9,11.08302]
[1743009759386,7.73071453,2015.0,2014.9,6.12]
[1743009760298,7.73071453,2015.0,2014.9,11.08302]
[1743009761391,7.73071453,2015.0,2014.9,6.12]
[1743009761597,9.43727187,2015.0,2014.9,6.12]
[1743009761900,14.40004187,2015.0,2014.9,6.12]
[1743009762456,9.43727187,2015.0,2014.9,6.12]
[1743009762812,7.73071453,2015.0,2014.9,6.12]
[1743009764598,11.90461336,2015.0,2014.9,11.08302]
[1743009764807,11.90461336,2015.0,2014.9,6.12]
[1743009765374,7.73071453,2015.0,2014.9,11.08302]
[1743009765571,7.73071453,2015.0,2014.9,11.91342]
[1743009766174,4.73071453,2015.0,2014.9,14.097421]
[1743009771431,4.73071453,2015.0,2014.9,11.91342]
[1743009777896,7.73071453,2015.0,2014.9,6.12]
[1743009778270,7.73071453,2015.0,2014.9,11.08302]
[1743009779308,7.73071453,2015.0,2014.9,6.12]
[1743009780504,7.73071453,2015.0,2014.9,11.08302]
[1743009780908,7.73071453,2015.0,2014.9,11.90852]
[1743009781811,7.73071453,2015.0,2014.9,11.08302]
[1743009782305,7.73071453,2015.0,2014.9,6.12]
[1743009782509,7.92931453,2015.0,2014.9,6.12]
[1743009782723,9.63586687,2015.0,2014.9,6.12]
[1743009783017,8.1622,2014.7,2014.5,6.1705974]
[1743009783219,4.17389883,2014.6,2014.5,6.1705974]
[1743009783969,9.13765883,2014.6,2014.5,6.1705974]
[1743009784472,12.13765883,2014.6,2014.5,0.0505974]
[1743009784684,8.90387771,2014.6,2014.5,0.0505974]
[1743009785371,13.86763771,2014.6,2014.5,0.0505974]
[1743009785566,8.90387771,2014.6,2014.5,0.0505974]
[1743009785772,7.17389883,2014.6,2014.5,0.0505974]
[1743009786603,5.84115682,2015.0,2014.9,4.96302]
[1743009786771,3.83325916,2015.0,2014.9,5.78582]
[1743009786977,3.83325916,2015.0,2014.9,5.83544472]
[1743009787189,2.72281687,2015.0,2014.9,7.82904808]
[1743009787707,4.37249883,2015.5,2014.9,7.82903808]
[1743009788000,4.17389883,2015.3,2015.2,4.96217]
[1743009788501,4.37249883,2015.5,2015.0,11.08276]
[1743009788703,3.0,2015.4,2015.2,4.96228]
[1743009788905,4.17389883,2015.5,2015.3,4.96204]
[1743009789092,9.16049883,2015.7,2015.5,4.96135]
[1743009789407,9.16049883,2015.7,2015.2,1.108228]
[1743009789408,9.16049883,2015.7,2015.2,6.070468]
[1743009789572,3.0,2015.4,2015.2,4.96211]
[1743009789972,4.17389883,2015.3,2015.1,4.96251]
[1743009790202,4.17389883,2015.3,2015.0,6.12]
[1743009790424,4.17389883,2015.1,2015.0,11.08277]
[1743009790701,4.17389883,2015.1,2014.8,4.96322]
[1743009790912,4.17389883,2014.9,2014.8,4.96322]
[1743009791115,4.17389883,2014.9,2014.7,11.08347]
[1743009792207,3.0,2014.8,2014.7,11.08347]
[1743009792514,4.795,2015.2,2014.9,4.96295]
[1743009792515,7.17389883,2015.1,2014.9,4.96295]
[1743009792808,4.799,2015.1,2015.0,4.96277]
[1743009793199,7.17389883,2015.3,2015.1,4.96242]
[1743009793395,7.17389883,2015.3,2015.2,4.96228]
[1743009793775,4.17389883,2015.5,2015.2,4.96228]
[1743009793981,4.811,2015.4,2015.3,4.96204]
[1743009794174,7.811,2015.4,2015.3,4.96204]
[1743009794381,7.811,2015.4,2015.2,4.96227]
[1743009794576,4.17389883,2015.3,2015.1,4.96246]
[1743009794783,7.17389883,2015.3,2015.0,4.96276]
[1743009795018,4.17389883,2015.1,2015.0,4.96276]